[Event "Late-Titled-Tuesday-Blitz-November-28-2023"]
[Site "Chess.com"]
[Date "2023.11.28"]
[Round "9"]
[White "Jahonas"]
[Black "Harry_Rakkel"]
[Result "0-1"]
[WhiteElo "2423"]
[BlackElo "2656"]
[TimeControl "180+1"]
[EndTime "15:41:25 PST"]
[Termination "Harry_Rakkel won by checkmate"]

1. e4 {[%clk 0:03:00.9]} 1... c5 {[%clk 0:02:55.6]} 2. Nf3 {[%clk 0:03:00.8]}
2... e6 {[%clk 0:02:55]} 3. d4 {[%clk 0:03:00.9]} 3... cxd4 {[%clk 0:02:55.1]}
4. Nxd4 {[%clk 0:03:01.8]} 4... Nc6 {[%clk 0:02:54.6]} 5. Nxc6 {[%clk
0:03:01.2]} 5... bxc6 {[%clk 0:02:53.9]} 6. Bd3 {[%clk 0:03:01.5]} 6... Nf6
{[%clk 0:02:52.9]} 7. O-O {[%clk 0:03:00.9]} 7... d5 {[%clk 0:02:52.8]} 8. Nd2
{[%clk 0:03:00.8]} 8... Be7 {[%clk 0:02:41.5]} 9. b3 {[%clk 0:02:51.9]} 9... O-O
{[%clk 0:02:37.3]} 10. Bb2 {[%clk 0:02:50.8]} 10... c5 {[%clk 0:02:36.6]} 11.
Qe2 {[%clk 0:02:47.2]} 11... a5 {[%clk 0:02:34.5]} 12. Rfd1 {[%clk 0:02:42.4]}
12... a4 {[%clk 0:02:24.9]} 13. Bb5 {[%clk 0:02:40.2]} 13... a3 {[%clk
0:02:21.1]} 14. Be5 {[%clk 0:02:38]} 14... Bb7 {[%clk 0:02:12.5]} 15. c4 {[%clk
0:02:28.1]} 15... dxe4 {[%clk 0:01:42.7]} 16. Nxe4 {[%clk 0:02:21.2]} 16... Nxe4
{[%clk 0:01:42.2]} 17. Rxd8 {[%clk 0:02:19.3]} 17... Rfxd8 {[%clk 0:01:36.9]}
18. Qg4 {[%clk 0:02:17.3]} 18... Bf8 {[%clk 0:01:15.7]} 19. Rd1 {[%clk
0:01:54.5]} 19... f6 {[%clk 0:01:03.6]} 20. Ba1 {[%clk 0:01:18.4]} 20... f5
{[%clk 0:00:56.3]} 21. Qe2 {[%clk 0:01:17.1]} 21... Kf7 {[%clk 0:00:31.5]} 22.
f3 {[%clk 0:01:10.4]} 22... Nf6 {[%clk 0:00:28]} 23. Bxf6 {[%clk 0:01:09.3]}
23... Kxf6 {[%clk 0:00:16.1]} 24. Bd7 {[%clk 0:01:04.8]} 24... Ra6 {[%clk
0:00:15.9]} 25. f4 {[%clk 0:00:54.7]} 25... Ke7 {[%clk 0:00:10.9]} 26. Bb5
{[%clk 0:00:48.2]} 26... Rad6 {[%clk 0:00:10.7]} 27. Re1 {[%clk 0:00:46.4]}
27... Kf7 {[%clk 0:00:10]} 28. Qh5+ {[%clk 0:00:45.6]} 28... Kg8 {[%clk
0:00:09.9]} 29. h3 {[%clk 0:00:41.5]} 29... g6 {[%clk 0:00:09.8]} 30. Qe2 {[%clk
0:00:40.1]} 30... Bh6 {[%clk 0:00:09.1]} 31. Qe5 {[%clk 0:00:34.5]} 31... Bg7
{[%clk 0:00:07]} 32. Qe2 {[%clk 0:00:30.6]} 32... Kh8 {[%clk 0:00:07.3]} 33. b4
{[%clk 0:00:24.1]} 33... Rd2 {[%clk 0:00:07.2]} 34. Qxe6 {[%clk 0:00:19.1]}
34... Rxg2+ {[%clk 0:00:07.3]} 35. Kf1 {[%clk 0:00:19.3]} 35... Rxa2 {[%clk
0:00:06.3]} 36. Bd7 {[%clk 0:00:17]} 36... Bd4 {[%clk 0:00:05.2]} 37. Rd1 {[%clk
0:00:12.3]} 37... Bg2+ {[%clk 0:00:04.4]} 38. Ke1 {[%clk 0:00:11.9]} 38... Bf2#
{[%clk 0:00:05.3]} 0-1

[Event "Late-Titled-Tuesday-Blitz-November-28-2023"]
[Site "Chess.com"]
[Date "2023.11.28"]
[Round "9"]
[White "FM_Kappeler"]
[Black "The_Straightforward_Rook"]
[Result "0-1"]
[WhiteElo "2338"]
[BlackElo "2466"]
[TimeControl "180+1"]
[EndTime "15:41:26 PST"]
[Termination "The_Straightforward_Rook won on time"]

1. d4 {[%clk 0:03:00.9]} 1... Nf6 {[%clk 0:02:57.4]} 2. c4 {[%clk 0:03:01]} 2...
e6 {[%clk 0:02:54.7]} 3. g3 {[%clk 0:03:00.5]} 3... d5 {[%clk 0:02:45.5]} 4. Bg2
{[%clk 0:03:00.4]} 4... Bb4+ {[%clk 0:02:41.4]} 5. Bd2 {[%clk 0:02:59.4]} 5...
Be7 {[%clk 0:02:41.4]} 6. Nf3 {[%clk 0:02:59.2]} 6... O-O {[%clk 0:02:40.1]} 7.
O-O {[%clk 0:02:58.8]} 7... b6 {[%clk 0:02:40.4]} 8. a4 {[%clk 0:02:48.2]} 8...
Ba6 {[%clk 0:02:35.5]} 9. b3 {[%clk 0:02:45.7]} 9... c6 {[%clk 0:02:29.5]} 10.
Qc2 {[%clk 0:02:33.7]} 10... Nbd7 {[%clk 0:02:27.3]} 11. a5 {[%clk 0:02:31.6]}
11... b5 {[%clk 0:02:25.4]} 12. c5 {[%clk 0:02:26]} 12... Re8 {[%clk 0:02:18.6]}
13. Bf4 {[%clk 0:02:11.6]} 13... h6 {[%clk 0:02:12]} 14. h4 {[%clk 0:01:43.2]}
14... Ne4 {[%clk 0:02:11.1]} 15. h5 {[%clk 0:01:36.3]} 15... Bf6 {[%clk
0:02:04.5]} 16. Nbd2 {[%clk 0:01:33.6]} 16... Nxd2 {[%clk 0:02:00.7]} 17. Qxd2
{[%clk 0:01:33.6]} 17... e5 {[%clk 0:01:54.9]} 18. dxe5 {[%clk 0:01:32.1]} 18...
Nxe5 {[%clk 0:01:55.2]} 19. Nxe5 {[%clk 0:01:30.8]} 19... Bxe5 {[%clk
0:01:56.1]} 20. Bxe5 {[%clk 0:01:28.8]} 20... Rxe5 {[%clk 0:01:57]} 21. b4
{[%clk 0:01:21.4]} 21... Qe7 {[%clk 0:01:52.3]} 22. Rfe1 {[%clk 0:01:18.2]}
22... Rxh5 {[%clk 0:01:51.6]} 23. e4 {[%clk 0:01:16.1]} 23... dxe4 {[%clk
0:01:44.9]} 24. Bxe4 {[%clk 0:00:59.7]} 24... Qf6 {[%clk 0:01:42.6]} 25. Rad1
{[%clk 0:00:46.9]} 25... Re5 {[%clk 0:01:29.7]} 26. f4 {[%clk 0:00:26.2]} 26...
Ree8 {[%clk 0:01:16.7]} 27. Qd6 {[%clk 0:00:20.1]} 27... Qc3 {[%clk 0:01:16]}
28. Kf2 {[%clk 0:00:08.2]} 28... Qb2+ {[%clk 0:01:04.9]} 29. Re2 {[%clk
0:00:07]} 29... Qxb4 {[%clk 0:01:04]} 30. Qxc6 {[%clk 0:00:07.2]} 30... Rab8
{[%clk 0:00:45.1]} 31. Bh7+ {[%clk 0:00:06.9]} 31... Kxh7 {[%clk 0:00:44.5]} 32.
Rxe8 {[%clk 0:00:06.9]} 32... Rxe8 {[%clk 0:00:43.5]} 33. Qxe8 {[%clk 0:00:07]}
33... Qxc5+ {[%clk 0:00:42.4]} 34. Qe3 {[%clk 0:00:06.8]} 34... Qc7 {[%clk
0:00:31.2]} 35. Rc1 {[%clk 0:00:05.9]} 35... Qd7 {[%clk 0:00:26.5]} 36. Qe4+
{[%clk 0:00:06.2]} 36... g6 {[%clk 0:00:23.4]} 37. Qe3 {[%clk 0:00:05.5]} 37...
Bb7 {[%clk 0:00:20.5]} 38. Qxa7 {[%clk 0:00:02.1]} 38... Qd2+ {[%clk 0:00:20.3]}
0-1

[Event "Late-Titled-Tuesday-Blitz-November-28-2023"]
[Site "Chess.com"]
[Date "2023.11.28"]
[Round "9"]
[White "Ducke13"]
[Black "serena-maria"]
[Result "0-1"]
[WhiteElo "2443"]
[BlackElo "2353"]
[TimeControl "180+1"]
[EndTime "15:41:27 PST"]
[Termination "serena-maria won on time"]

1. d4 {[%clk 0:03:00.9]} 1... Nf6 {[%clk 0:02:59.9]} 2. g3 {[%clk 0:02:59.9]}
2... g6 {[%clk 0:03:00.6]} 3. Bg2 {[%clk 0:02:57.4]} 3... Bg7 {[%clk 0:03:01.3]}
4. e4 {[%clk 0:02:58.1]} 4... d6 {[%clk 0:03:00.8]} 5. Ne2 {[%clk 0:02:58.7]}
5... O-O {[%clk 0:03:01]} 6. O-O {[%clk 0:02:59.4]} 6... Nbd7 {[%clk 0:03:00.3]}
7. Nbc3 {[%clk 0:02:57.1]} 7... e5 {[%clk 0:03:00.5]} 8. a4 {[%clk 0:02:49.5]}
8... Nh5 {[%clk 0:02:57.5]} 9. h3 {[%clk 0:02:35.2]} 9... f5 {[%clk 0:02:56.3]}
10. exf5 {[%clk 0:02:26.9]} 10... gxf5 {[%clk 0:02:56.2]} 11. Ra3 {[%clk
0:01:52.7]} 11... f4 {[%clk 0:02:50.4]} 12. Bd5+ {[%clk 0:01:45.4]} 12... Kh8
{[%clk 0:02:49.2]} 13. Ne4 {[%clk 0:01:45]} 13... c6 {[%clk 0:02:40]} 14. Ba2
{[%clk 0:01:43.6]} 14... d5 {[%clk 0:02:40]} 15. Nd6 {[%clk 0:01:36.5]} 15... f3
{[%clk 0:02:34.8]} 16. Nc3 {[%clk 0:01:27.8]} 16... exd4 {[%clk 0:02:33.3]} 17.
Nb1 {[%clk 0:01:23.9]} 17... Ne5 {[%clk 0:02:25.7]} 18. Nxc8 {[%clk 0:01:17.4]}
18... Qxc8 {[%clk 0:02:25.6]} 19. Kh2 {[%clk 0:01:12.8]} 19... Qe8 {[%clk
0:02:09.5]} 20. Nd2 {[%clk 0:01:06.5]} 20... Qf7 {[%clk 0:02:05.9]} 21. Re1
{[%clk 0:00:55.8]} 21... Rae8 {[%clk 0:01:48.3]} 22. a5 {[%clk 0:00:49.9]} 22...
a6 {[%clk 0:01:47.6]} 23. Ra4 {[%clk 0:00:37.1]} 23... c5 {[%clk 0:01:45.3]} 24.
c4 {[%clk 0:00:36.8]} 24... Nd3 {[%clk 0:00:52.4]} 25. Rxe8 {[%clk 0:00:34.8]}
25... Qxe8 {[%clk 0:00:52.6]} 26. Qf1 {[%clk 0:00:22.7]} 26... Qxa4 {[%clk
0:00:50.3]} 27. Bb1 {[%clk 0:00:20]} 27... Nxc1 {[%clk 0:00:48.9]} 28. Qxc1
{[%clk 0:00:20]} 28... Qxa5 {[%clk 0:00:45.6]} 29. cxd5 {[%clk 0:00:15.6]} 29...
Bh6 {[%clk 0:00:42.9]} 30. Qc2 {[%clk 0:00:15]} 30... Qc7 {[%clk 0:00:42.1]} 31.
d6 {[%clk 0:00:13.1]} 31... Qg7 {[%clk 0:00:41.2]} 32. Ne4 {[%clk 0:00:08.9]}
32... b6 {[%clk 0:00:35.1]} 33. Qa4 {[%clk 0:00:05.6]} 33... a5 {[%clk
0:00:19.4]} 34. Qc6 {[%clk 0:00:05.5]} 34... Qa7 {[%clk 0:00:15.7]} 0-1

[Event "Late-Titled-Tuesday-Blitz-November-28-2023"]
[Site "Chess.com"]
[Date "2023.11.28"]
[Round "9"]
[White "emeli_chess"]
[Black "SouS007"]
[Result "0-1"]
[WhiteElo "2362"]
[BlackElo "2567"]
[TimeControl "180+1"]
[EndTime "15:41:32 PST"]
[Termination "SouS007 won on time"]

1. d4 {[%clk 0:03:00.9]} 1... d5 {[%clk 0:02:59.7]} 2. c4 {[%clk 0:03:00.6]}
2... c6 {[%clk 0:02:59.8]} 3. Nc3 {[%clk 0:03:00]} 3... Nf6 {[%clk 0:02:59.5]}
4. e3 {[%clk 0:02:59.9]} 4... Bf5 {[%clk 0:02:57.9]} 5. Nf3 {[%clk 0:03:00]}
5... e6 {[%clk 0:02:57.8]} 6. Nh4 {[%clk 0:02:59.8]} 6... Be4 {[%clk 0:02:58.1]}
7. f3 {[%clk 0:02:59.6]} 7... Bg6 {[%clk 0:02:58.5]} 8. Bd2 {[%clk 0:02:57.5]}
8... Be7 {[%clk 0:02:56.4]} 9. Nxg6 {[%clk 0:02:56.5]} 9... hxg6 {[%clk
0:02:57.3]} 10. Qb3 {[%clk 0:02:56.4]} 10... Qc7 {[%clk 0:02:57.2]} 11. O-O-O
{[%clk 0:02:48.4]} 11... a5 {[%clk 0:02:57.1]} 12. h4 {[%clk 0:02:35.2]} 12...
a4 {[%clk 0:02:57.1]} 13. Qc2 {[%clk 0:02:29.9]} 13... Na6 {[%clk 0:02:49.9]}
14. a3 {[%clk 0:02:28.4]} 14... dxc4 {[%clk 0:02:44.7]} 15. Bxc4 {[%clk
0:02:27]} 15... b5 {[%clk 0:02:45]} 16. Nxb5 {[%clk 0:02:06.7]} 16... cxb5
{[%clk 0:02:45.9]} 17. Bxb5+ {[%clk 0:02:07]} 17... Kf8 {[%clk 0:02:42]} 18.
Bxa4 {[%clk 0:02:00.3]} 18... Nd5 {[%clk 0:02:22.2]} 19. Qxc7 {[%clk 0:01:52.8]}
19... Naxc7 {[%clk 0:02:23.1]} 20. Bc2 {[%clk 0:01:31.1]} 20... Kg8 {[%clk
0:02:11.9]} 21. g3 {[%clk 0:01:25.9]} 21... Nb6 {[%clk 0:02:08.7]} 22. e4 {[%clk
0:01:16.6]} 22... Nc4 {[%clk 0:02:08.5]} 23. Bd3 {[%clk 0:01:14.7]} 23... Nxd2
{[%clk 0:02:08.6]} 24. Kxd2 {[%clk 0:01:12.1]} 24... Rh5 {[%clk 0:02:00.7]} 25.
e5 {[%clk 0:01:01.8]} 25... g5 {[%clk 0:01:57]} 26. hxg5 {[%clk 0:00:59.4]}
26... Bxg5+ {[%clk 0:01:53.3]} 27. f4 {[%clk 0:00:58.9]} 27... Rxh1 {[%clk
0:01:54.2]} 28. Rxh1 {[%clk 0:00:58.2]} 28... Be7 {[%clk 0:01:48.1]} 29. Be4
{[%clk 0:00:56.4]} 29... Rb8 {[%clk 0:01:46]} 30. Kc2 {[%clk 0:00:46.6]} 30...
Nb5 {[%clk 0:01:46]} 31. Rd1 {[%clk 0:00:43.3]} 31... Rc8+ {[%clk 0:01:41.6]}
32. Kb3 {[%clk 0:00:38]} 32... Rb8 {[%clk 0:01:35.9]} 33. Ka2 {[%clk 0:00:37.4]}
33... Bxa3 {[%clk 0:01:35.2]} 34. d5 {[%clk 0:00:32.2]} 34... Bxb2 {[%clk
0:01:33.6]} 35. Kxb2 {[%clk 0:00:25.4]} 35... Nd6+ {[%clk 0:01:33.6]} 36. Kc2
{[%clk 0:00:21.9]} 36... Nxe4 {[%clk 0:01:34.5]} 37. d6 {[%clk 0:00:22.1]} 37...
Nxg3 {[%clk 0:01:32.2]} 38. Kd3 {[%clk 0:00:19.8]} 38... f6 {[%clk 0:01:30.4]}
39. Kd4 {[%clk 0:00:17.8]} 39... Nf5+ {[%clk 0:01:28.6]} 40. Kc5 {[%clk
0:00:17.7]} 40... Kf7 {[%clk 0:01:24.1]} 41. Kc6 {[%clk 0:00:17.2]} 41... Rc8+
{[%clk 0:01:21]} 42. Kd7 {[%clk 0:00:16.5]} 42... Rc5 {[%clk 0:01:17.9]} 43. Re1
{[%clk 0:00:15.6]} 43... fxe5 {[%clk 0:01:17.2]} 44. fxe5 {[%clk 0:00:15.9]}
44... g5 {[%clk 0:01:11]} 45. Rg1 {[%clk 0:00:14.1]} 45... Rxe5 {[%clk
0:01:10.6]} 46. Rxg5 {[%clk 0:00:14]} 46... Rd5 {[%clk 0:01:11.2]} 47. Kc6
{[%clk 0:00:13.4]} 47... Rxd6+ {[%clk 0:01:11.2]} 48. Kc5 {[%clk 0:00:13.6]}
48... Rd5+ {[%clk 0:01:11.8]} 49. Kb4 {[%clk 0:00:12.7]} 49... Kf6 {[%clk
0:01:12.7]} 50. Rg8 {[%clk 0:00:12.5]} 50... Nd6 {[%clk 0:01:10.9]} 51. Kc3
{[%clk 0:00:12]} 51... e5 {[%clk 0:01:10.1]} 52. Rf8+ {[%clk 0:00:10.7]} 52...
Ke7 {[%clk 0:01:10.2]} 53. Rh8 {[%clk 0:00:07.8]} 53... e4 {[%clk 0:01:10.4]}
54. Kc2 {[%clk 0:00:06.5]} 54... e3 {[%clk 0:01:10.2]} 55. Rh3 {[%clk
0:00:06.3]} 55... Nf5 {[%clk 0:01:06.6]} 56. Kc1 {[%clk 0:00:03]} 56... Ke6
{[%clk 0:01:06.6]} 57. Rh2 {[%clk 0:00:02.6]} 57... Ng3 {[%clk 0:01:01.3]} 58.
Rh3 {[%clk 0:00:01.8]} 58... e2 {[%clk 0:01:01.4]} 0-1

[Event "Late-Titled-Tuesday-Blitz-November-28-2023"]
[Site "Chess.com"]
[Date "2023.11.28"]
[Round "9"]
[White "SilverCityIndigo"]
[Black "morte-negra"]
[Result "1-0"]
[WhiteElo "2434"]
[BlackElo "2002"]
[TimeControl "180+1"]
[EndTime "15:41:34 PST"]
[Termination "SilverCityIndigo won on time"]

1. e4 {[%clk 0:02:58.2]} 1... c5 {[%clk 0:02:57.7]} 2. Nc3 {[%clk 0:02:52.3]}
2... g6 {[%clk 0:02:56.1]} 3. d4 {[%clk 0:02:13.9]} 3... cxd4 {[%clk 0:02:54.5]}
4. Qxd4 {[%clk 0:02:14.8]} 4... Nf6 {[%clk 0:02:51.8]} 5. e5 {[%clk 0:02:08.6]}
5... Nc6 {[%clk 0:02:52.4]} 6. Qf4 {[%clk 0:02:08.7]} 6... Nh5 {[%clk
0:02:51.5]} 7. Qe4 {[%clk 0:02:08.6]} 7... f5 {[%clk 0:02:19.3]} 8. Qe2 {[%clk
0:01:47.8]} 8... Bg7 {[%clk 0:02:09.7]} 9. Nf3 {[%clk 0:01:44.9]} 9... e6 {[%clk
0:02:02.3]} 10. Nb5 {[%clk 0:01:33.1]} 10... O-O {[%clk 0:01:53.2]} 11. Bd2
{[%clk 0:01:26]} 11... d5 {[%clk 0:01:18.9]} 12. O-O-O {[%clk 0:01:05.7]} 12...
Bd7 {[%clk 0:01:04.8]} 13. Bc3 {[%clk 0:00:47.2]} 13... Nf4 {[%clk 0:01:03.4]}
14. Qd2 {[%clk 0:00:38.4]} 14... Bh6 {[%clk 0:00:49.9]} 15. Kb1 {[%clk 0:00:38]}
15... Kg7 {[%clk 0:00:47.2]} 16. Qe1 {[%clk 0:00:30.5]} 16... a6 {[%clk
0:00:39.8]} 17. Nd6 {[%clk 0:00:28.5]} 17... b5 {[%clk 0:00:39]} 18. g3 {[%clk
0:00:27.9]} 18... b4 {[%clk 0:00:31.6]} 19. Bd2 {[%clk 0:00:25.3]} 19... Nh5
{[%clk 0:00:20.7]} 20. Bxh6+ {[%clk 0:00:25.4]} 20... Kxh6 {[%clk 0:00:21.2]}
21. Qd2+ {[%clk 0:00:22.4]} 21... Kg7 {[%clk 0:00:21.2]} 22. h4 {[%clk 0:00:21]}
22... a5 {[%clk 0:00:18.5]} 23. Bb5 {[%clk 0:00:19.8]} 23... Rb8 {[%clk
0:00:12.8]} 24. Bxc6 {[%clk 0:00:17.9]} 24... Bxc6 {[%clk 0:00:12.9]} 25. Nd4
{[%clk 0:00:18.6]} 25... Qd7 {[%clk 0:00:11.9]} 26. b3 {[%clk 0:00:18]} 26... a4
{[%clk 0:00:11.1]} 27. f3 {[%clk 0:00:11.8]} 27... axb3 {[%clk 0:00:11]} 28.
cxb3 {[%clk 0:00:10.5]} 28... Nxg3 {[%clk 0:00:11.6]} 29. Rhg1 {[%clk
0:00:10.1]} 29... f4 {[%clk 0:00:09.6]} 30. h5 {[%clk 0:00:08.6]} 30... g5
{[%clk 0:00:08.9]} 31. Rxg3 {[%clk 0:00:08.2]} 31... fxg3 {[%clk 0:00:08.5]} 32.
Qxg5+ {[%clk 0:00:08.8]} 32... Kh8 {[%clk 0:00:08.5]} 33. h6 {[%clk 0:00:09.1]}
33... Rb7 {[%clk 0:00:03.6]} 34. Rg1 {[%clk 0:00:08]} 34... Qe7 {[%clk
0:00:02.5]} 35. Rxg3 {[%clk 0:00:06.4]} 35... Qxg5 {[%clk 0:00:01.7]} 36. Rxg5
{[%clk 0:00:07.3]} 36... Rf4 {[%clk 0:00:01.5]} 37. Nxc6 {[%clk 0:00:07.3]} 1-0

[Event "Late-Titled-Tuesday-Blitz-November-28-2023"]
[Site "Chess.com"]
[Date "2023.11.28"]
[Round "9"]
[White "ChristopherYoo"]
[Black "CheckThis4"]
[Result "1-0"]
[WhiteElo "3014"]
[BlackElo "2719"]
[TimeControl "180+1"]
[EndTime "15:41:36 PST"]
[Termination "ChristopherYoo won by resignation"]

1. e4 {[%clk 0:03:00.9]} 1... c5 {[%clk 0:02:59.5]} 2. Nf3 {[%clk 0:03:01]} 2...
d6 {[%clk 0:02:59.5]} 3. d4 {[%clk 0:03:01.5]} 3... cxd4 {[%clk 0:02:59.5]} 4.
Nxd4 {[%clk 0:03:02.4]} 4... Nf6 {[%clk 0:02:59.5]} 5. Nc3 {[%clk 0:03:02.9]}
5... g6 {[%clk 0:03:00.1]} 6. Bg5 {[%clk 0:03:02.2]} 6... Bg7 {[%clk 0:03:00]}
7. Bb5+ {[%clk 0:03:02.9]} 7... Bd7 {[%clk 0:02:59.1]} 8. Qe2 {[%clk 0:03:03.3]}
8... Nc6 {[%clk 0:02:55.5]} 9. Bxc6 {[%clk 0:02:58.3]} 9... bxc6 {[%clk
0:02:55.1]} 10. O-O-O {[%clk 0:02:58.9]} 10... O-O {[%clk 0:02:53.1]} 11. e5
{[%clk 0:02:52.8]} 11... dxe5 {[%clk 0:02:31.7]} 12. Nxc6 {[%clk 0:02:51.1]}
12... Qc7 {[%clk 0:02:29.8]} 13. Nxe7+ {[%clk 0:02:45.6]} 13... Kh8 {[%clk
0:02:27.1]} 14. Ned5 {[%clk 0:02:43.3]} 14... Nxd5 {[%clk 0:02:23.8]} 15. Nxd5
{[%clk 0:02:44.2]} 15... Qa5 {[%clk 0:02:14.2]} 16. a3 {[%clk 0:02:43.4]} 16...
Be6 {[%clk 0:02:09.7]} 17. Qd2 {[%clk 0:02:42.4]} 17... Qb5 {[%clk 0:01:40.7]}
18. Nc7 {[%clk 0:02:31.9]} 18... Qc4 {[%clk 0:01:39.3]} 19. Nxa8 {[%clk
0:02:32]} 19... Qa2 {[%clk 0:01:37]} 20. Qd6 {[%clk 0:02:08.3]} 20... Rxa8
{[%clk 0:01:14.6]} 21. Qb4 {[%clk 0:01:04.5]} 21... h6 {[%clk 0:01:07.6]} 22.
Be3 {[%clk 0:01:00.7]} 22... Rc8 {[%clk 0:00:55.9]} 23. Kd2 {[%clk 0:00:40.9]}
23... Qd5+ {[%clk 0:00:54.6]} 24. Kc1 {[%clk 0:00:40.4]} 24... Qa2 {[%clk
0:00:53.5]} 25. Rhe1 {[%clk 0:00:29.8]} 25... Bf5 {[%clk 0:00:51.4]} 26. Re2
{[%clk 0:00:22.6]} 26... Qa1+ {[%clk 0:00:47.4]} 27. Kd2 {[%clk 0:00:22.3]}
27... Rxc2+ {[%clk 0:00:47.2]} 28. Ke1 {[%clk 0:00:22.4]} 28... Rxe2+ {[%clk
0:00:40.9]} 29. Kxe2 {[%clk 0:00:22.6]} 29... Qa2 {[%clk 0:00:41.4]} 30. f3
{[%clk 0:00:19.2]} 30... Qe6 {[%clk 0:00:35.9]} 31. g4 {[%clk 0:00:17.1]} 31...
Bc2 {[%clk 0:00:35.8]} 32. Rc1 {[%clk 0:00:17.7]} 32... Qa6+ {[%clk 0:00:33.2]}
33. Kf2 {[%clk 0:00:17.4]} 33... Bd3 {[%clk 0:00:28.8]} 34. Qb3 {[%clk
0:00:17.4]} 34... e4 {[%clk 0:00:26.6]} 35. Qxf7 {[%clk 0:00:16.6]} 35... exf3
{[%clk 0:00:25.8]} 36. Rc7 {[%clk 0:00:14.1]} 36... Qf6 {[%clk 0:00:09.3]} 37.
Qxf6 {[%clk 0:00:14.4]} 37... Bxf6 {[%clk 0:00:10.2]} 38. Kxf3 {[%clk
0:00:14.7]} 38... Bxb2 {[%clk 0:00:09.7]} 39. Rxa7 {[%clk 0:00:15.4]} 39... Bc4
{[%clk 0:00:08.7]} 40. a4 {[%clk 0:00:11.7]} 40... h5 {[%clk 0:00:08.2]} 41.
gxh5 {[%clk 0:00:11.8]} 41... gxh5 {[%clk 0:00:09.1]} 42. Ke4 {[%clk 0:00:11.8]}
42... Bf1 {[%clk 0:00:08.5]} 43. Bd4+ {[%clk 0:00:11.7]} 43... Bxd4 {[%clk
0:00:07.9]} 44. Kxd4 {[%clk 0:00:12.6]} 44... h4 {[%clk 0:00:08.2]} 45. a5
{[%clk 0:00:12.1]} 45... h3 {[%clk 0:00:09.1]} 1-0

[Event "Late-Titled-Tuesday-Blitz-November-28-2023"]
[Site "Chess.com"]
[Date "2023.11.28"]
[Round "9"]
[White "Bryanl106"]
[Black "Byniolus"]
[Result "0-1"]
[WhiteElo "2506"]
[BlackElo "2784"]
[TimeControl "180+1"]
[EndTime "15:41:40 PST"]
[Termination "Byniolus won by checkmate"]

1. e4 {[%clk 0:03:00.9]} 1... d6 {[%clk 0:02:59.9]} 2. d4 {[%clk 0:03:00.4]}
2... Nf6 {[%clk 0:03:00.3]} 3. Nc3 {[%clk 0:03:00.3]} 3... c6 {[%clk 0:03:00.4]}
4. Nf3 {[%clk 0:02:59.7]} 4... Bg4 {[%clk 0:03:00.1]} 5. h3 {[%clk 0:02:59.3]}
5... Bh5 {[%clk 0:02:59.9]} 6. Be2 {[%clk 0:02:58.6]} 6... e6 {[%clk 0:03:00]}
7. Be3 {[%clk 0:02:55.1]} 7... d5 {[%clk 0:03:00.2]} 8. e5 {[%clk 0:02:54.9]}
8... Nfd7 {[%clk 0:03:00.1]} 9. Ng5 {[%clk 0:02:50.8]} 9... Bg6 {[%clk
0:02:54.5]} 10. Bd3 {[%clk 0:02:41.6]} 10... Be7 {[%clk 0:02:44.6]} 11. Bxg6
{[%clk 0:02:32.9]} 11... hxg6 {[%clk 0:02:45.5]} 12. Qg4 {[%clk 0:02:30]} 12...
c5 {[%clk 0:02:15.3]} 13. Nxe6 {[%clk 0:02:13]} 13... fxe6 {[%clk 0:02:16.2]}
14. Qxg6+ {[%clk 0:02:13.1]} 14... Kf8 {[%clk 0:02:11.3]} 15. Qxe6 {[%clk
0:02:14]} 15... cxd4 {[%clk 0:01:53.5]} 16. Qf5+ {[%clk 0:02:12.4]} 16... Kg8
{[%clk 0:01:50.4]} 17. Qe6+ {[%clk 0:02:09.7]} 17... Kf8 {[%clk 0:01:48]} 18.
Qf5+ {[%clk 0:02:09.8]} 18... Kg8 {[%clk 0:01:46.8]} 19. Nxd5 {[%clk 0:01:53.2]}
19... Qa5+ {[%clk 0:01:33]} 20. Nc3 {[%clk 0:01:29.6]} 20... dxc3 {[%clk
0:01:16.7]} 21. Qe6+ {[%clk 0:01:28.6]} 21... Kf8 {[%clk 0:01:16.2]} 22. Qf5+
{[%clk 0:01:28.6]} 22... Ke8 {[%clk 0:01:15.7]} 23. Qg6+ {[%clk 0:01:28.7]}
23... Kd8 {[%clk 0:01:14.8]} 24. O-O-O {[%clk 0:01:28.9]} 24... Qxa2 {[%clk
0:01:06.6]} 25. bxc3 {[%clk 0:01:28.8]} 25... Ba3+ {[%clk 0:00:41.8]} 26. Kd2
{[%clk 0:01:28]} 26... Qd5+ {[%clk 0:00:42.4]} 27. Ke2 {[%clk 0:01:26.2]} 27...
Qxe5 {[%clk 0:00:40.8]} 28. g4 {[%clk 0:01:00.7]} 28... Re8 {[%clk 0:00:27.8]}
29. Rd3 {[%clk 0:00:55.3]} 29... Qe4 {[%clk 0:00:17.1]} 30. Qg5+ {[%clk
0:00:52.7]} 30... Be7 {[%clk 0:00:16.6]} 31. Qa5+ {[%clk 0:00:48.1]} 31... b6
{[%clk 0:00:16.4]} 32. Qa1 {[%clk 0:00:49]} 32... Nc6 {[%clk 0:00:09.5]} 33.
Rhd1 {[%clk 0:00:48.9]} 33... Ne5 {[%clk 0:00:10]} 34. Rd5 {[%clk 0:00:41.6]}
34... Bc5 {[%clk 0:00:05.4]} 35. Qa6 {[%clk 0:00:09.4]} 35... Qf3+ {[%clk
0:00:03.8]} 36. Kd2 {[%clk 0:00:07.6]} 36... Bxe3+ {[%clk 0:00:04.7]} 37. fxe3
{[%clk 0:00:08.2]} 37... Qxd5+ {[%clk 0:00:04.8]} 38. Kc1 {[%clk 0:00:08.3]}
38... Qc6 {[%clk 0:00:04.6]} 39. Kb2 {[%clk 0:00:07.5]} 39... Rc8 {[%clk
0:00:04.7]} 40. Qxa7 {[%clk 0:00:05.5]} 40... Qxc3+ {[%clk 0:00:04.6]} 41. Kb1
{[%clk 0:00:06.1]} 41... Qxc2+ {[%clk 0:00:05.1]} 42. Ka1 {[%clk 0:00:07]} 42...
Qxd1+ {[%clk 0:00:05.5]} 43. Ka2 {[%clk 0:00:07.9]} 43... Rc2+ {[%clk
0:00:05.5]} 44. Ka3 {[%clk 0:00:08.8]} 44... Qa1+ {[%clk 0:00:05.8]} 45. Kb4
{[%clk 0:00:09.7]} 45... Qb1+ {[%clk 0:00:06.4]} 46. Ka4 {[%clk 0:00:09.8]}
46... Ra2# {[%clk 0:00:07.3]} 0-1